Cogmind - Beta 15 @@@ ROGUE MODE // 2025.07.21 @ 07:35:06 Player: shapeshifter Result: Destroyed by X-77 Beamer with Gatling Laser Performance ------------- Evolutions (7) 3500 Regions Visited (12) 2400 Robots Destroyed (11) 55 Value Destroyed (353) 353 Prototype IDs (11) 220 Alien Tech Used (0) 0 Bonus (800) 800 TOTAL SCORE: 7328 Bonus ------- Entered DSFs 500 Registered with UFD 300 Cogmind --------- Core Integrity 0/1300 Matter 250/300 Energy 14/100 System Corruption 9% Temperature Cool (24) Movement Flying (32) Location -3/Armory Parts ------- > --- POWER (2) -------- (None) > --- PROPULSION (10) -- Electron Diverter Electron Diverter > --- UTILITY (7) ------ Advanced Signal Interpreter Hacking Suite > --- WEAPON (2) ------- (None) > --- INVENTORY (5) ---- Impulse Thruster Impulse Thruster Impulse Thruster Electron Diverter Advanced Force Booster Peak State ------------ > --- POWER ------------ Fission Core Cooled Antimatter Reactor > --- PROPULSION ------- Nuclear Pulse Array Nuclear Pulse Array Nuclear Pulse Array Nuclear Pulse Array Nuclear Pulse Array > --- UTILITY ---------- Long-range Sensor Array Advanced Signal Interpreter Improved Power Shielding Advanced Shield Generator Improved Point Defense System > --- WEAPON ----------- Companion Sword > --- INVENTORY -------- Angular Momentum Engine Antimatter Reactor Mini Drone Bay Battle Rifle [Rating: 110] Favorites ----------- Power Deuterium Engine Engine Deuterium Engine Power Core Light Fission Core Reactor Cooled Antimatter Reactor Propulsion Light Treads Treads Light Treads Leg Improved Carbon-fiber Leg Flight Unit Nuclear Pulse Array Utility Large Storage Unit Device Subdweller Optics Storage Large Storage Unit Processor Advanced Signal Interpreter Hackware Hacking Suite Protection Improved Medium Armor Plating Weapon Assault Rifle Energy Gun Arc Projector Ballistic Gun Assault Rifle Slashing Weapon Companion Sword Build | -11 -10 -10 -10 -9 -6 -5 -5 -4 -4 -4 -3 -3 ------- Run | Yrd Mat Min Sub Scr Fac Fac DSF Fac Was Fac Res Arm Slots Evolved 14 | . . . . . 8 2 . 2 . . 2 . Power 1 | . . . . . 1 . . . . . . . Propulsion 8 | . . . . . 3 1 . 2 . . 2 . Utility 5 | . . . . . 4 1 . . . . . . Weapon . | . . . . . . . . . . . . . Parts Attached 64 | 9 . . . 7 20 . 5 1 . 2 9 11 Power 9 | 1 . . . 1 3 . 1 . . . 3 . Engine 4 | 1 . . . 1 2 . . . . . . . Core 2 | . . . . . 1 . 1 . . . . . Reactor 3 | . . . . . . . . . . . 3 . Propulsion 23 | 3 . . . 1 6 . 3 1 . . 1 8 Treads 7 | 2 . . . 1 4 . . . . . . . Leg 3 | 1 . . . . 2 . . . . . . . Wheel . | . . . . . . . . . . . . . Hover . | . . . . . . . . . . . . . Flight 13 | . . . . . . . 3 1 . . 1 8 Utility 26 | 2 . . . 4 9 . 1 . . 2 5 3 Device 15 | 1 . . . 1 6 . . . . 1 4 2 Storage 5 | 1 . . . 2 1 . . . . 1 . . Processor 1 | . . . . . . . . . . . 1 . Hackware 1 | . . . . . . . . . . . . 1 Protection 4 | . . . . 1 2 . 1 . . . . . Artifact . | . . . . . . . . . . . . . Weapon 6 | 3 . . . 1 2 . . . . . . . Energy Gun 3 | 1 . . . . 2 . . . . . . . Energy Cannon . | . . . . . . . . . . . . . Ballistic Gun 2 | 2 . . . . . . . . . . . . Ballistic Cannon . | . . . . . . . . . . . . . Launcher . | . . . . . . . . . . . . . Special Weapon . | . . . . . . . . . . . . . Impact Weapon . | . . . . . . . . . . . . . Slashing Weapon 1 | . . . . 1 . . . . . . . . Piercing Weapon . | . . . . . . . . . . . . . Special Melee Weapon . | . . . . . . . . . . . . . Unidentified Prototypes 4 | . . . . 1 . . . . . . 1 2 Parts Lost 34 | . . . . . 18 . . . . . 2 14 Power 5 | . . . . . 2 . . . . . . 3 Propulsion 16 | . . . . . 8 . . . . . 2 6 Utility 11 | . . . . . 7 . . . . . . 4 Weapon 2 | . . . . . 1 . . . . . . 1 Highest Loss Streak 15 | . . . . . 15 . . . . . 2 13 To Critical Strikes . | . . . . . . . . . . . . . Average Backups 7 | 3 5 6 7 10 7 4 3 2 2 2 2 3 Power . | . 1 1 1 1 . 1 . . . . 1 1 Propulsion 1 | 1 2 2 1 1 1 . 1 1 1 1 . . Utility 4 | . 1 2 3 6 3 1 . . . . . . Weapon 1 | . 1 1 1 2 1 2 1 1 1 1 1 . Tool/Special . | . . . . . . . . . . . . . Unused Backups 12 | . . . 1 4 1 . 2 . . . . 4 Power 1 | . . . . 1 . . . . . . . . Propulsion 6 | . . . 1 2 . . . . . . . 3 Utility 3 | . . . . 1 1 . 1 . . . . . Weapon 2 | . . . . . . . 1 . . . . 1 Tool/Special . | . . . . . . . . . . . . . Average Slot Usage (%) 83 | . 100 100 100 95 69 5 21 42 42 44 59 36 Engine 10 | . 14 14 14 14 5 . 3 5 5 5 . . Core 1 | . . . . . 4 . 2 5 5 5 4 1 Treads 22 | . 28 28 28 28 19 . . . . . . . Flight 2 | . . . . . . . 9 21 21 21 21 12 Device 9 | . 14 14 14 7 11 . . . . 1 12 7 Storage 10 | . 14 14 14 14 5 . . . . . 2 . Protection 5 | . . . . 5 12 . 1 5 5 5 4 1 Ballistic Gun 15 | . 28 28 28 22 . . . . . . . . Slashing Weapon 3 | . . . . 3 6 5 5 5 5 5 4 3 Peak Build Rating 110 | 7 7 8 8 21 54 7 57 68 68 77 110 90 Average Rating 24 | 4 7 7 8 13 35 7 40 68 68 70 100 57 On Entrance 32 | . 7 7 8 8 20 7 7 57 68 68 77 90 Naked Turns . | . . . . . . . . . . . . . Heaviest Build 239 | 12 12 12 12 42 239 4 29 29 29 42 53 36 Greatest Support 109 | 40 40 40 40 43 109 3 39 52 52 52 65 39 Greatest Overweight (x) 13 | . . . . . 13 1 1 . . . 1 3 Average Overweight (x) . | . . . . . . 1 . . . . . . Largest Inventory Capacity 35 | 8 8 8 8 15 35 5 5 5 5 10 10 5 Average Capacity 12 | 6 8 8 8 14 15 5 5 5 5 5 7 5 Most Carried 15 | 6 5 7 8 15 14 4 5 3 3 4 5 5 Average Carried 9 | 3 5 6 7 12 8 4 4 3 3 3 2 3 Final Capacity 15 | 8 8 8 8 15 5 5 5 5 5 10 5 5 Final Carried 15 | 5 5 7 8 15 4 4 5 3 3 4 3 5 Class Distribution -------------------- 89% | Mutant 9% | Sprinter Dominant Class ---------------- Mutant | -10/Materials Mutant | -10/Mines Mutant | -10/Subcaves Mutant | -9/Scraptown Mutant | -6/Factory Mutant | -5/Factory Mutant | -5/DSF Mutant | -4/Factory Sprinter | -4/Waste Sprinter | -4/Factory Sprinter | -3/Research Sprinter | -3/Armory Resources | -11 -10 -10 -10 -9 -6 -5 -5 -4 -4 -4 -3 -3 ----------- Run | Yrd Mat Min Sub Scr Fac Fac DSF Fac Was Fac Res Arm Matter Collected 878 | 280 . 30 8 40 261 . 83 . . . 72 104 Remotely . | . . . . . . . . . . . . . Salvage Created 418 | 41 . . 45 . 258 . . . . . . 74 Parts 30 | 10 . . 2 . 11 . . . . . . 7 Haulers Intercepted . | . . . . . . . . . . . . . Recyclers Shooed 1 | 1 . . . . . . . . . . . . Parts Field Recycled . | . . . . . . . . . . . . . Retrieved Matter . | . . . . . . . . . . . . . Parts Self-Destructed 4 | . . . 4 . . . . . . . . . Prevented . | . . . . . . . . . . . . . Kills | -11 -10 -10 -10 -9 -6 -5 -5 -4 -4 -4 -3 -3 ------- Run | Yrd Mat Min Sub Scr Fac Fac DSF Fac Was Fac Res Arm Combat Hostiles Destroyed 8 | . . . 1 . 4 . . . . . . 3 Melee 7 | . . . . . 4 . . . . . . 3 Guns 1 | . . . 1 . . . . . . . . . Classes Destroyed 7 | 2 . . 1 . 1 . . . . . . 3 Worker 1 | 1 . . . . . . . . . . . . Tunneler 2 | 2 . . . . . . . . . . . . Swarmer 1 | . . . . . . . . . . . . 1 Cutter 1 | . . . . . . . . . . . . 1 Saboteur 1 | . . . . . . . . . . . . 1 Grunt 4 | . . . 1 . 3 . . . . . . . Heavy 1 | . . . . . 1 . . . . . . . Best Kill Streak 3 | 3 . . 1 . 1 . . . . . . 1 Combat Bots Only 1 | . . . 1 . 1 . . . . . . 1 Max Kills in Single Turn 1 | 1 . . 1 . 1 . . . . . . 1 Gunslinging . | . . . . . . . . . . . . . Exploded . | . . . . . . . . . . . . . Melee 1 | . . . . . 1 . . . . . . 1 Uniques/NPCs Destroyed . | . . . . . . . . . . . . . Combat | -11 -10 -10 -10 -9 -6 -5 -5 -4 -4 -4 -3 -3 -------- Run | Yrd Mat Min Sub Scr Fac Fac DSF Fac Was Fac Res Arm Hostile Shots Fired 631 | . . . 30 . 223 . 4 2 . 18 54 300 Missed 269 | . . . 10 . 70 . 4 2 . 9 23 151 Intercepted 1 | . . . . . . . . . . . . 1 Hits 362 | . . . 20 . 153 . . . . 9 31 149 Melee 7 | . . . . . . . . . . . . 7 Projectile 355 | . . . 20 . 153 . . . . 9 31 142 AOE 1 | . . . . . . . 1 . . . . . Critical Strikes 17 | . . . . . 7 . . . . . 2 8 Part Disruptions 1 | . . . . . . . . . . . 1 . Damage Taken 6813 | . . . 147 . 3228 . 24 . . 196 538 2680 Core 2122 | . . . 8 . 742 . 12 . . 59 95 1206 Absorbed by Shields 400 | . . . . . . . . . . . 191 209 Redirected to Shielding 110 | . . . . . 7 . . . . 26 55 22 Core Remaining (%) 80 | 100 . . . 96 12 . 98 . . 94 . . Volleys Fired 8 | 5 . . 2 . 1 . . . . . . . Largest 2 | 2 . . 2 . 1 . . . . . . . Hottest 69 | 40 . . 40 . 69 . . . . . . . Shots Fired 15 | 10 . . 4 . 1 . . . . . . . Gun 15 | 10 . . 4 . 1 . . . . . . . Cannon . | . . . . . . . . . . . . . Launcher . | . . . . . . . . . . . . . Special . | . . . . . . . . . . . . . Kinetic 14 | 10 . . 4 . . . . . . . . . Thermal 1 | . . . . . 1 . . . . . . . Explosive . | . . . . . . . . . . . . . Electromagnetic . | . . . . . . . . . . . . . Robot Hit Streak 6 | 6 . . 4 . . . . . . . . . Robot Miss Streak 1 | 1 . . . . 1 . . . . . . . Penetration Max . | . . . . . . . . . . . . . Secondary Targets . | . . . . . . . . . . . . . Shots Hit Robots 53 | 7 . . 3 . 34 . . . . . 4 5 Core Hits 20 | 5 . . 2 . 9 . . . . . 1 3 Critical Kills . | . . . . . . . . . . . . . Critical Parts Destroyed . | . . . . . . . . . . . . . Critical Strikes 4 | . . . . . 4 . . . . . . . Melee Attacks 55 | . . . . . 40 . . . . . 6 9 Impact . | . . . . . . . . . . . . . Slashing 55 | . . . . . 40 . . . . . 6 9 Piercing . | . . . . . . . . . . . . . Sneak Attacks 6 | . . . . . 6 . . . . . . . Combat Hostiles 6 | . . . . . 6 . . . . . . . Follow-up Attacks . | . . . . . . . . . . . . . Damage Inflicted 1661 | 90 . . 31 . 1169 . . . . . 160 211 Guns 121 | 90 . . 31 . . . . . . . . . Cannons . | . . . . . . . . . . . . . Explosions . | . . . . . . . . . . . . . Melee 1540 | . . . . . 1169 . . . . . 160 211 Ramming . | . . . . . . . . . . . . . Kinetic 121 | 90 . . 31 . . . . . . . . . Thermal . | . . . . . . . . . . . . . Explosive . | . . . . . . . . . . . . . Electromagnetic . | . . . . . . . . . . . . . Impact . | . . . . . . . . . . . . . Slashing 1540 | . . . . . 1169 . . . . . 160 211 Piercing . | . . . . . . . . . . . . . Highest Corruption 9 | . . . . . 7 . . . 7 7 5 9 Average Corruption 5 | . . . . . 4 . . . 7 7 2 7 Corruption Purged . | . . . . . . . . . . . . . Corruption Blocked . | . . . . . . . . . . . . . Effects 11 | . . . . . 2 . . . 1 . 2 6 Message Errors 3 | . . . . . 1 . . . 1 . . 1 Matter Fused 2 | . . . . . . . . . . . . 2 Energy Discharges 1 | . . . . . . . . . . . . 1 Parts Fused 1 | . . . . . . . . . . . . 1 Data Loss (minor) 2 | . . . . . . . . . . . 1 1 Data Loss (major) 2 | . . . . . 1 . . . . . 1 . Overload Shots . | . . . . . . . . . . . . . Overflow Damage 32 | . . . . . 2 . . . . . . 30 Projectiles . | . . . . . . . . . . . . . Explosions . | . . . . . . . . . . . . . Melee 32 | . . . . . 2 . . . . . . 30 Knockbacks . | . . . . . . . . . . . . . Impact . | . . . . . . . . . . . . . Kinetic . | . . . . . . . . . . . . . Secondary . | . . . . . . . . . . . . . Self-Inflicted Damage . | . . . . . . . . . . . . . Shots . | . . . . . . . . . . . . . Rammed . | . . . . . . . . . . . . . Targets Rammed . | . . . . . . . . . . . . . Kicked . | . . . . . . . . . . . . . Crushed . | . . . . . . . . . . . . . Highest Temperature 14 | . . . . . 9 . . . . 14 . . Average Temperature 8 | . . . . . 9 . . . . 7 . . Received Heat Transfer 396 | . . . 66 . 261 . . . . 30 . 39 Siege Activations . | . . . . . . . . . . . . . Martial Activations . | . . . . . . . . . . . . . Shielding Activations . | . . . . . . . . . . . . . Robots Disrupted 1 | . . . . . 1 . . . . . . . Combat Hostiles 1 | . . . . . 1 . . . . . . . Robots Corrupted . | . . . . . . . . . . . . . Combat Hostiles . | . . . . . . . . . . . . . Parts Fried . | . . . . . . . . . . . . . Impact Corruptions . | . . . . . . . . . . . . . Robots Melted . | . . . . . . . . . . . . . Combat Hostiles . | . . . . . . . . . . . . . Parts Melted . | . . . . . . . . . . . . . Heat Transferred . | . . . . . . . . . . . . . Parts Sabotaged 3 | . . . . . . . . . . . . 3 Parts Stolen . | . . . . . . . . . . . . . Parts Stripped . | . . . . . . . . . . . . . Power Chain Reactions . | . . . . . . . . . . . . . Alert | -11 -10 -10 -10 -9 -6 -5 -5 -4 -4 -4 -3 -3 ------- Run | Yrd Mat Min Sub Scr Fac Fac DSF Fac Was Fac Res Arm Maximum Alert Level 1 | . . . . . . . . . . . . 1 Low Security (%) 94 | 100 100 100 . . 100 100 100 100 100 100 100 46 Level 1 5 | . . . . . . . . . . . . 53 Level 2 . | . . . . . . . . . . . . . Level 3 . | . . . . . . . . . . . . . Level 4 . | . . . . . . . . . . . . . Level 5 . | . . . . . . . . . . . . . High Security . | . . . . . . . . . . . . . Max Security . | . . . . . . . . . . . . . Peak Influence 361 | 10 . . . . 51 . . . . 90 42 361 Initial 42 | . . . . . . . . . . . 42 . Average 22 | . . . . . 7 . . . . 13 15 161 Influence Increases 1011 | 15 . . 95 . 196 . . . . 90 14 601 Destroy 0b10 Robot/C 160 | . . . 20 . 80 . . . . . . 60 Destroy 0b10 Robot/NC 15 | 15 . . . . . . . . . . . . Destroy Leader 20 | . . . . . 20 . . . . . . . Successful Hack 96 | . . . . . 51 . . . . . 14 31 Partial Spotted 15 | . . . . . . . . . . . . 15 Lose Combat Pursuer 705 | . . . 75 . 45 . . . . 90 . 495 Influence Decreases 650 | 15 . . 20 75 196 . . . . 10 94 240 Entered New Map 113 | . . . . 75 . . . . . . 38 . Time Decay 323 | 15 . . 20 . 126 . . . . 10 52 100 Lost Part 214 | . . . . . 70 . . . . . 4 140 Squads Dispatched 12 | . . . . . 5 . 1 . . 1 2 3 Investigation 3 | . . . . . 1 . . . . . 1 1 Extermination 4 | . . . . . 2 . . . . . 1 1 Reinforcement 5 | . . . . . 2 . 1 . . 1 . 1 Assault . | . . . . . . . . . . . . . Garrison . | . . . . . . . . . . . . . Intercept . | . . . . . . . . . . . . . Searches Triggered . | . . . . . . . . . . . . . Construction Impeded . | . . . . . . . . . . . . . Haulers Reinforced . | . . . . . . . . . . . . . Active Scanning Responses . | . . . . . . . . . . . . . Cargo Convoy Interrupts . | . . . . . . . . . . . . . Stealth | -11 -10 -10 -10 -9 -6 -5 -5 -4 -4 -4 -3 -3 --------- Run | Yrd Mat Min Sub Scr Fac Fac DSF Fac Was Fac Res Arm Distress Signals 4 | . . . . . . . . . . 1 1 2 Communications Jammed . | . . . . . . . . . . . . . Distress Signals . | . . . . . . . . . . . . . Times Spotted 107 | . . . 5 . 14 . 3 2 6 10 9 58 Peak Tracking Total 25 | . . . 6 . 4 . 2 2 6 9 7 25 Tactical Retreats 12 | . . . 1 . 3 . . . . 1 . 7 Traps | -11 -10 -10 -10 -9 -6 -5 -5 -4 -4 -4 -3 -3 ------- Run | Yrd Mat Min Sub Scr Fac Fac DSF Fac Was Fac Res Arm Traps Triggered 4 | . . . . . 1 . . 1 . 1 . 1 Indirectly . | . . . . . . . . . . . . . Trap Hack Attempts . | . . . . . . . . . . . . . Triggered . | . . . . . . . . . . . . . Disarmed . | . . . . . . . . . . . . . Reprogrammed . | . . . . . . . . . . . . . Reused . | . . . . . . . . . . . . . Traps Extracted . | . . . . . . . . . . . . . Installed . | . . . . . . . . . . . . . Triggered . | . . . . . . . . . . . . . Machines | -11 -10 -10 -10 -9 -6 -5 -5 -4 -4 -4 -3 -3 ---------- Run | Yrd Mat Min Sub Scr Fac Fac DSF Fac Was Fac Res Arm Machines Disabled . | . . . . . . . . . . . . . Max in Single Turn . | . . . . . . . . . . . . . Machines Repaired . | . . . . . . . . . . . . . Machines Dismantled . | . . . . . . . . . . . . . Machines Sabotaged . | . . . . . . . . . . . . . Overloaded Fab Kills . | . . . . . . . . . . . . . Hacking | -11 -10 -10 -10 -9 -6 -5 -5 -4 -4 -4 -3 -3 --------- Run | Yrd Mat Min Sub Scr Fac Fac DSF Fac Was Fac Res Arm Machines Accessed 11 | . 1 . . 3 2 1 . . . 1 1 2 Terminals 7 | . 1 . . . 1 1 . . . 1 1 2 Fabricators . | . . . . . . . . . . . . . Repair Stations . | . . . . . . . . . . . . . Recycling Units 1 | . . . . . 1 . . . . . . . Scanalyzers . | . . . . . . . . . . . . . Garrison Access . | . . . . . . . . . . . . . Total Hacks 23 | . 1 . . 10 4 1 . . . 1 3 3 Successful 19 | . 1 . . 10 3 1 . . . 1 1 2 Failed 4 | . . . . . 1 . . . . . 2 1 Catastrophic 3 | . . . . . . . . . . . 2 1 Database Lockouts . | . . . . . . . . . . . . . Manual . | . . . . . . . . . . . . . Terminals 11 | . 1 . . . 2 1 . . . 1 3 3 Fabricators . | . . . . . . . . . . . . . Repair Stations . | . . . . . . . . . . . . . Recycling Units 2 | . . . . . 2 . . . . . . . Scanalyzers . | . . . . . . . . . . . . . Garrison Access . | . . . . . . . . . . . . . Terminal Hacks 18 | . 1 . . 10 2 1 . . . 1 1 2 Record 1 | . . . . 1 . . . . . . . . Robot Analysis 7 | . . . . 7 . . . . . . . . Open Door 2 | . . . . 1 . . . . . . . 1 Open DSF 2 | . . . . . . 1 . . . 1 . . Branch Access Points 1 | . . . . . 1 . . . . . . . Emergency Access Points 2 | . . . . . . . . . . . 1 1 Alert Level 1 | . 1 . . . . . . . . . . . Zone Layout 1 | . . . . . 1 . . . . . . . Proto ID Catalog 1 | . . . . 1 . . . . . . . . Fabricator Hacks . | . . . . . . . . . . . . . Repair Station Hacks . | . . . . . . . . . . . . . Recycling Unit Hacks 1 | . . . . . 1 . . . . . . . Retrieve Components 1 | . . . . . 1 . . . . . . . Scanalyzer . | . . . . . . . . . . . . . Garrison Access Hacks . | . . . . . . . . . . . . . Unauthorized Hacks . | . . . . . . . . . . . . . Terminals . | . . . . . . . . . . . . . Fabricators . | . . . . . . . . . . . . . Repair Stations . | . . . . . . . . . . . . . Recycling Units . | . . . . . . . . . . . . . Scanalyzers . | . . . . . . . . . . . . . Garrison Access . | . . . . . . . . . . . . . Data Cores Recovered . | . . . . . . . . . . . . . Used . | . . . . . . . . . . . . . Hacking Detections 6 | . 1 . . . 2 . . . . . 1 2 Full Trace Events 2 | . . . . . . . . . . . 1 1 Feedback Events . | . . . . . . . . . . . . . Feedback Blocked . | . . . . . . . . . . . . . Robot Schematics Acquired . | . . . . . . . . . . . . . Robots Built . | . . . . . . . . . . . . . Authchips . | . . . . . . . . . . . . . Time . | . . . . . . . . . . . . . Total Robot Build Rating . | . . . . . . . . . . . . . Part Schematics Acquired . | . . . . . . . . . . . . . Parts Built . | . . . . . . . . . . . . . Authchips . | . . . . . . . . . . . . . Time . | . . . . . . . . . . . . . Total Part Build Rating . | . . . . . . . . . . . . . Parts Repaired . | . . . . . . . . . . . . . Time . | . . . . . . . . . . . . . Parts Recycled . | . . . . . . . . . . . . . Recycled Matter . | . . . . . . . . . . . . . Retrieved Matter . | . . . . . . . . . . . . . Retrieved Components . | . . . . . . . . . . . . . Parts Scanalyzed . | . . . . . . . . . . . . . Part Schematics Acquired . | . . . . . . . . . . . . . Parts Damaged . | . . . . . . . . . . . . . Bothacking | -11 -10 -10 -10 -9 -6 -5 -5 -4 -4 -4 -3 -3 ------------ Run | Yrd Mat Min Sub Scr Fac Fac DSF Fac Was Fac Res Arm Used RIF Installer . | . . . . . . . . . . . . . Robots Hacked . | . . . . . . . . . . . . . Non-combat . | . . . . . . . . . . . . . Combat . | . . . . . . . . . . . . . Robot Hacks Applied . | . . . . . . . . . . . . . Relay Couplers Released . | . . . . . . . . . . . . . Fabnet Peak Effective % . | . . . . . . . . . . . . . Robots Rewired . | . . . . . . . . . . . . . Allies Hacked . | . . . . . . . . . . . . . Hacks Repelled . | . . . . . . . . . . . . . Allies | -11 -10 -10 -10 -9 -6 -5 -5 -4 -4 -4 -3 -3 -------- Run | Yrd Mat Min Sub Scr Fac Fac DSF Fac Was Fac Res Arm Total Allies 1 | . . . . . . . . . 1 . . . Largest Group 1 | . . . . . . . . . 1 . . . Highest-Rated Group 46 | . . . . . . . . . 46 . . . Highest-Rated Ally 46 | . . . . . . . . . 46 . . . Total Orders . | . . . . . . . . . . . . . Ally Attacks . | . . . . . . . . . . . . . Total Damage . | . . . . . . . . . . . . . Kills . | . . . . . . . . . . . . . Allies Corrupted . | . . . . . . . . . . . . . Allies Melted . | . . . . . . . . . . . . . Intel | -11 -10 -10 -10 -9 -6 -5 -5 -4 -4 -4 -3 -3 ------- Run | Yrd Mat Min Sub Scr Fac Fac DSF Fac Was Fac Res Arm Active Infowar (turns) 2040 | 18 140 351 155 801 404 . . . . . 148 23 Optics 801 | . . . . 801 . . . . . . . . Sensors 171 | . . . . . . . . . . . 148 23 Terrain 404 | . . . . . 404 . . . . . . . Seismic 664 | 18 140 351 155 . . . . . . . . . Robot Analysis Total 7 | . . . . 7 . . . . . . . . Derelict Logs Recovered 3 | . . 2 . 1 . . . . . . . . Drone Launches . | . . . . . . . . . . . . . Drone Recoveries . | . . . . . . . . . . . . . Exploration | -11 -10 -10 -10 -9 -6 -5 -5 -4 -4 -4 -3 -3 ------------- Run | Yrd Mat Min Sub Scr Fac Fac DSF Fac Was Fac Res Arm Turns Passed 3963 | 130 140 351 161 1876 785 9 44 16 29 67 149 206 Spaces Moved 3337 | 70 88 219 96 1154 393 10 75 48 94 198 387 505 Core 89 | 15 . . . . 57 10 6 . . . . 1 Treads 1937 | 55 88 219 96 1154 325 . . . . . . . Legs 11 | . . . . . 11 . . . . . . . Wheels . | . . . . . . . . . . . . . Hover . | . . . . . . . . . . . . . Flight 1300 | . . . . . . . 69 48 94 198 387 504 Fastest Speed 21 | 50 160 160 160 160 100 100 34 31 31 31 28 21 Average Speed 108 | 136 160 160 160 160 161 100 40 31 31 31 29 29 Slowest Speed 1030 | 160 160 160 160 160 1030 100 120 31 31 31 111 200 Overloaded Moves . | . . . . . . . . . . . . . Propulsion Burnouts . | . . . . . . . . . . . . . Robots Hopped . | . . . . . . . . . . . . . Potential Cave-ins . | . . . . . . . . . . . . . Cave-ins Triggered . | . . . . . . . . . . . . . Exploration Rate (%) 30 | 4 9 54 6 85 14 1 70 2 87 6 12 45 Regions Visited 12 Branch Regions 4 Pre-discovered Areas . | . . . . . . . . . . . . . Known Exits Taken 2 | . . . . . . 1 . . . . 1 . Unknown Exits Taken 7 | 1 1 1 1 1 1 . . . . 1 . . Scrap Searched 4 | . . 1 . 3 . . . . . . . . Spaces Dug . | . . . . . . . . . . . . . Terrain Destroyed . | . . . . . . . . . . . . . Melee . | . . . . . . . . . . . . . Projectile . | . . . . . . . . . . . . . AOE . | . . . . . . . . . . . . . Terrain Rammed . | . . . . . . . . . . . . . Walls Destroyed . | . . . . . . . . . . . . . Machines Disabled . | . . . . . . . . . . . . . Actions | -11 -10 -10 -10 -9 -6 -5 -5 -4 -4 -4 -3 -3 --------- Run | Yrd Mat Min Sub Scr Fac Fac DSF Fac Was Fac Res Arm Total 3573 | 95 87 220 101 1187 484 9 87 49 93 202 412 547 Wait 3 | . . . . . . . . . . . . 3 Move 3326 | 69 87 218 95 1153 392 9 74 48 93 197 386 505 Hop . | . . . . . . . . . . . . . Pick Up 71 | 12 . 2 2 16 13 . 5 . . 3 7 11 Fast Attach 8 | . . . . . . . 2 . . . . 6 Attach 47 | 7 . . . 1 19 . 4 1 . 2 5 8 Detach 3 | . . . . . 2 . . . . . . 1 Swap 20 | 2 . . . 6 7 . . . . . 5 . Drop 32 | . . . 2 11 10 . 2 . . . 3 4 Fire 8 | 5 . . 2 . 1 . . . . . . . Melee 55 | . . . . . 40 . . . . . 6 9 Ram . | . . . . . . . . . . . . . Kick . | . . . . . . . . . . . . . Crush . | . . . . . . . . . . . . . Escape Stasis . | . . . . . . . . . . . . . Rewire . | . . . . . . . . . . . . . Trap . | . . . . . . . . . . . . . Miscellaneous . | . . . . . . . . . . . . . Route ------- -11/Scrapyard -10/Materials -10/Mines (discovered 2 exits: [*Mat] / [*Sub]) -10/Subcaves (discovered 2 exits: [*Mat] / *Scr) -9/Scraptown (discovered 2 exits: *Fac x2) -6/Factory (discovered 3 exits: *Fac / Low x2) -5/Factory -5/DSF -4/Factory -4/Waste -4/Factory -3/Research -3/Armory History --------- Turn | Location | Event 7 | -11/Scrapyard | Discovered new exit (range 15) 131 | -11/Scrapyard | Entered Materials 131 | -10/Materials | Discovered new exit (range 8) 271 | -10/Materials | Entered Mines 275 | -10/Mines | Learned Materials interactive machine intel 305 | -10/Mines | Build established: Mutant 381 | -10/Mines | Learned Materials terminal intel 451 | -10/Mines | Discovered new exit (range 15) 455 | -10/Mines | Met a Derelict bent on vengeance 601 | -10/Mines | Discovered new exit (range 13) 622 | -10/Mines | Entered Subcaves 623 | -10/Subcaves | Approached by a straggling Scientist 646 | -10/Subcaves | Discovered new exit (range 11) 748 | -10/Subcaves | Scientist uncovered a shortcut to Scraptown 783 | -10/Subcaves | Entered Scraptown 846 | -9/Scraptown | Visited Symbiants 872 | -9/Scraptown | Visited Comm Corps 968 | -9/Scraptown | Visited UFD Registry 968 | -9/Scraptown | Registered with UFD as "Metaform" 990 | -9/Scraptown | Visited SPCMW 1014 | -9/Scraptown | Visited Junk Repository 1095 | -9/Scraptown | Discovered new exit (range 13) 1734 | -9/Scraptown | Scanned Subdweller tech in exchange for log data 1739 | -9/Scraptown | Learned Factory stockpile data 1847 | -9/Scraptown | Visited Scrapoid Research Area 1893 | -9/Scraptown | Visited DA-N13 Charitable Foundation 1909 | -9/Scraptown | Found DCF Scrap (28 items) 1966 | -9/Scraptown | Visited LU-1G1's Boring Crew 1995 | -9/Scraptown | Visited Curators Association 2190 | -9/Scraptown | Visited Research Penetration Think Tank 2227 | -9/Scraptown | Visited Sword Containment 2290 | -9/Scraptown | Visited Observation Area 2320 | -9/Scraptown | Visited Junk Repository 2358 | -9/Scraptown | Visited Analyses Database 2416 | -9/Scraptown | Visited Science Guys 2651 | -9/Scraptown | Discovered new exit (range 5) 2659 | -9/Scraptown | Entered Factory 2659 | -6/Factory | Evolved 8 slots: Power x1, Propulsion x3, Utility x4 2883 | -6/Factory | Identified exit to Lower Caves 3229 | -6/Factory | Lost 3 parts (1n2u) 3341 | -6/Factory | Core integrity fell below 50% 3415 | -6/Factory | Lost 15 parts (2p7n5u1w) 3429 | -6/Factory | Discovered new exit (range 16) 3438 | -6/Factory | Core integrity fell below 20% 3444 | -6/Factory | Entered another Factory area 3444 | -5/Factory | Evolved 2 slots: Propulsion x1, Utility x1 3453 | -5/Factory | Identified exit to DSF 3453 | -5/Factory | Entered DSF 3492 | -5/DSF | Discovered new exit (range 12) 3496 | -5/DSF | Additional patrols routed to DSF 3497 | -5/DSF | Entered Factory 3497 | -4/Factory | Evolved 2 slots: Propulsion x2 3513 | -4/Factory | Manually triggered Chute Trap 3513 | -4/Factory | Sucked down chute 3513 | -4/Factory | Entered Waste 3514 | -4/Waste | Met a frightened Derelict 3526 | -4/Waste | Spotted C-40 Crusher 3526 | -4/Waste | Spotted C-40 Crusher 3528 | -4/Waste | EMP discharged 3528 | -4/Waste | Spotted C-40 Crusher 3528 | -4/Waste | Spotted C-40 Crusher 3531 | -4/Waste | Spotted C-40 Crusher 3539 | -4/Waste | Spotted C-40 Crusher 3539 | -4/Waste | Discovered new exit (range 11) 3542 | -4/Waste | Entered Factory 3594 | -4/Factory | Discovered new exit (range 16) 3609 | -4/Factory | Entered Research 3609 | -3/Research | Evolved 2 slots: Propulsion x2 3750 | -3/Research | Discovered new exit (range 15) 3755 | -3/Research | Identified exit to Armory 3758 | -3/Research | Entered Armory 3835 | -3/Armory | Spotted B-86 Titan 3883 | -3/Armory | Core integrity fell below 50% 3892 | -3/Armory | Found Adv. Force Booster 3922 | -3/Armory | Core integrity fell below 20% 3962 | -3/Armory | Lost 13 parts (3p6n3u1w) 3964 | -3/Armory | Destroyed by X-77 Beamer with Gatling Laser Last Messages --------------- 03931_ Companion Sword destroyed. Companion Sword: "Time to go to the place where all swords go after they die..." 03935_ Acquired Hacking Suite. 03940_ Acquired Q-thruster. 03940_ Terminal disabled. 03941_ Dropped Q-thruster. 03942_ Acquired Q-thruster. 03945_ Connecting with Fabricator... 03951_ G>RME29GA%R08O|N/&E8TQX6 1BBSQBC 2QX|< 03954_ Acquired Prototype Flight Unit. 03954_ Identified Electron Diverter. 03955_ Dropped Adv. Force Booster. 03956_ Acquired Adv. Force Booster. 03957_ Dropped Battle Rifle. 03958_ Imp. Diametric Drive blown off. 03958_ Q-thruster blown off. 03958_ E-15 Imp destroyed. 03959_ Acquired Electron Diverter. [Achievement: This Is Interesting...] Map ----- +----------------------------------------------------+ | ????????????????????????????????????# """" T"#? | | ????????????????????????????????????# """" "#? | | ????????????????????????????????????# #? | | ????????????????????????????????????##########+### | | ??????????????????????????????????????# | | ??????????????????????????????????????# ### | | ????????????????????##????????????????# "" #?? | | ???????????????###### ################# "F"" #?? | | ???????????????# + """" #?? | | ???????????????# "" ########### #?? | | ???????????????# "" #?????????# #?? | | ???????????????# T" #?????????# ###+#?? | | ???????????????+ "" #?????????# #?????? | | ???????????????# "" #?????????# #?????? | | ???????????????# #?????????# #?????? | | ???????????????# """"" #?????????# #?????? | | ???????????????# """"" #?????????# #?????? | | ???????????????#!!! """"" #?????????# ?????? | | ???????????????#!!! #?????????# ####?????? | | ???????????????#!!! #?????????# ?????????? | | ???????????????#####+##+#####?????????? ?????????? | | ???????????????##### ########??????? ?????????? | | ??????????# x ?????????? | | ???????????############x##+#####???????#?????????? | | ?????????????????????#=%== #?????????????????? | | ?????????????????????# =[@==== #?????????????????? | | ?????????????????????# ===== #?????????????????? | | ?????????????????????# #?????????????????? | | ?????????????????????###########?????????????????? | | ?????????????????????????????????????????????????? | | ?????????????????????????????????????????????????? | | ?????????????????????????????????????????????????? | | ?????????????????????????????????????????????????? | | ?????????????????????????????????????????????????? | | ?????????????????????????????????????????????????? | | ?????????????????????????????????????????????????? | | ?????????????????????????????????????????????????? | | ?????????????????????????????????????????????????? | | ?????????????????????????????????????????????????? | | | | | | | | | | | | | | | | | | | | | | | +----------------------------------------------------+ Best States ------------- Heat Dissipation 75 Energy Generation 36 Energy Capacity 590 Matter Stores 300 Matter Capacity 300 Sight Range 21 Robot Scan Range 18 Terrain Scan Range 20 Terrain Scan Density 10 Additional Mass Support 6 Base Temperature (-) 150 Armor Coverage 375 Core Shielding 20 Power Shielding 66 Point Defense Rating 160 Evasion (%) 65 Recoil Reduction 5 Offensive Hacking 10 Item Schematics ----------------- None Robot Schematics ------------------ None Fabricated ------------ Nothing Repaired ---------- Nothing Alien Tech Used ----------------- None Achievements -------------- No Explosion For You Oh No You Don't! Tank This Is Interesting... Challenges ------------ None Game ------ Seed MobilePointySink Manual? 0 Play Time 00:43:07 Cumulative 27.3 hours Start 2025.07.21 @ 06:52:30 End 2025.07.21 @ 07:35:06 Sessions 1 Manual Loads 0 Difficulty Rogue Special Mode None Game No. 72 Rogue 72 Adventurer 0 Explorer 0 Win Type - Total 0 Types 0/0/0/0/0/0/0/0/0/0 Lore% 25 Gallery% 30 Achievement% 23 Wizard Run 0 Options --------- Layout 1 ASCII 0 Keyboard 0 Movement Mouse Keybinds 0 Fullscreen 1 Font 32/SmallcapsGlow Map View 50x35 Zoom Use 0% Tactical HUD 1 Map Filters NONE Filters NONE Steam 1 RUN: 26f9a6b9-8ee4-4525-b7d2-9b47d798d506